bitfinex-derivatives/quotes_BTCF0:USTF0_20260106
["timestamp","ask_amount","ask_price","bid_price","bid_amount"]
[1767662961597,0.01841233,94237.0,94217.0,0.11492601]
[1767662961894,0.10228956,94237.0,94218.0,0.09032]
[1767662962099,0.11004989,94237.0,94219.0,0.09032]
[1767662962487,0.010612,94235.0,94219.0,0.09032]
[1767662962899,0.010612,94235.0,94212.0,0.12554001]
[1767662963098,0.010612,94232.0,94213.0,0.20524601]
[1767662963294,0.010614,94219.0,94197.0,0.09596422]
[1767662963593,0.09167756,94220.0,94198.0,0.09032]
[1767662963999,0.010614,94219.0,94198.0,0.09032]
[1767662964301,0.09167756,94220.0,94198.0,0.100936]
[1767662964798,0.010613,94227.0,94204.0,0.11492601]
[1767662964994,0.010613,94224.0,94204.0,0.11492601]
[1767662965186,0.09167756,94228.0,94204.0,0.11492601]
[1767662965387,0.010613,94229.0,94206.0,0.11492601]
[1767662965589,0.010613,94229.0,94207.0,0.11492601]
[1767662965995,0.010613,94229.0,94207.0,0.09596422]
[1767662966296,0.12226347,94229.0,94205.0,0.010615]
[1767662966496,0.10229056,94223.0,94200.0,0.11492601]
[1767662966695,0.09167756,94223.0,94201.0,0.21582201]
[1767662967002,0.00015923,94232.0,94210.0,0.11492601]
[1767662967192,0.09167756,94226.0,94209.0,0.09028]
[1767662967397,0.010613,94223.0,94202.0,0.09596422]
[1767662967598,0.11165047,94226.0,94203.0,0.09028]
[1767662967896,0.010612,94231.0,94204.0,0.11492601]
[1767662968103,0.010612,94231.0,94206.0,0.11492601]
[1767662968400,0.010612,94231.0,94208.0,0.11492601]
[1767662968587,0.010612,94235.0,94212.0,0.11492601]
[1767662968785,0.11025291,94238.0,94216.0,0.010614]
[1767662969103,0.010611,94244.0,94219.0,0.01896179]
[1767662969308,0.010611,94244.0,94219.0,0.11492601]
[1767662969800,0.00015923,94241.0,94219.0,0.11492601]
[1767662970202,0.11165047,94255.0,94228.0,0.11160067]
[1767662970395,0.010608,94273.0,94228.0,0.09596422]
[1767662970396,0.11165047,94251.0,94228.0,0.09596422]
[1767662970593,0.09167756,94238.0,94222.0,0.010613]
[1767662970792,0.09167756,94238.0,94223.0,0.09028]
[1767662971002,0.010611,94240.0,94223.0,0.09028]
[1767662971202,0.010612,94237.0,94223.0,0.09028]
[1767662971896,0.02047572,94237.0,94221.0,2.3e-07]
[1767662972207,0.11482362,94234.0,94221.0,2.3e-07]
[1767662972500,0.010612,94233.0,94221.0,2.3e-07]
[1767662973005,0.010612,94230.0,94221.0,2.3e-07]
[1767662973201,0.11482362,94234.0,94221.0,2.3e-07]
[1767662973406,0.1049609,94226.0,94216.0,0.08815638]
[1767662973604,0.010612,94231.0,94216.0,0.09028]
[1767662974007,0.010612,94235.0,94216.0,0.09028]
[1767662974207,0.02047572,94244.0,94220.0,0.10586746]
[1767662974208,0.010611,94239.0,94220.0,0.10586746]
[1767662974395,0.010611,94239.0,94218.0,0.01481898]
[1767662974708,0.010611,94239.0,94217.0,0.10166248]
[1767662974908,0.010612,94236.0,94217.0,0.10166248]
[1767662975106,0.11482362,94240.0,94217.0,0.09104848]
[1767662975305,0.11482362,94240.0,94218.0,0.09028]
[1767662975504,0.010612,94236.0,94218.0,0.09028]
[1767662975904,0.11482362,94237.0,94212.0,0.10586746]
[1767662976105,0.11482362,94237.0,94213.0,0.09028]
[1767662976106,0.010613,94227.0,94213.0,0.09028]
[1767662976597,0.010612,94230.0,94213.0,0.09028]
[1767662976818,0.11482362,94237.0,94214.0,0.09028]
[1767662977709,0.010613,94226.0,94214.0,0.09028]
[1767662978212,0.010613,94229.0,94214.0,0.09028]
[1767662978912,0.010612,94232.0,94214.0,0.09028]
[1767662979102,0.010612,94230.0,94212.0,0.09104848]
[1767662979305,0.010612,94230.0,94213.0,0.09028]
[1767662980917,0.010613,94228.0,94213.0,0.09028]
[1767662981505,0.02047572,94236.0,94213.0,0.09028]
[1767662982515,0.010613,94228.0,94213.0,0.09028]
[1767662982816,0.010612,94231.0,94213.0,0.09028]
[1767662983111,0.010613,94229.0,94213.0,0.09028]
[1767662983714,0.09028,94243.0,94213.0,0.01424919]
[1767662983902,0.09028,94243.0,94212.0,0.09028]
[1767662983903,0.11296034,94255.0,94223.0,0.010613]
[1767662984105,0.11296034,94255.0,94206.0,0.010615]
[1767662984106,0.01061,94253.0,94228.0,0.01424919]
[1767662984328,0.1846279,94254.0,94230.0,0.01424919]
[1767662984501,0.01861244,94255.0,94237.0,0.01424919]
[1767662984700,0.09028,94258.0,94237.0,0.01424919]
[1767662985107,0.11482362,94254.0,94229.0,0.100892]
[1767662985309,0.1049579,94254.0,94230.0,0.01965498]
[1767662985720,0.1049579,94254.0,94231.0,0.01965498]
[1767662986324,0.10839682,94258.0,94229.0,0.09028]
[1767662986325,0.0943479,94246.0,94229.0,0.09028]
[1767662986508,0.1049589,94243.0,94226.0,0.09028]
[1767662987708,0.010611,94240.0,94219.0,0.09104848]
[1767662987917,0.1049589,94240.0,94220.0,0.09028]
[1767662988416,0.010612,94235.0,94213.0,0.18132848]
[1767662988616,0.1049599,94232.0,94212.0,0.09028]
[1767662989003,0.1049609,94229.0,94207.0,0.09104848]
[1767662989203,0.11482362,94227.0,94205.0,0.09028]
[1767662989510,0.010613,94226.0,94205.0,0.09028]
[1767662989712,0.010613,94226.0,94205.0,0.1102395]
[1767662990116,0.02047572,94220.0,94199.0,0.00212318]
[1767662990311,0.0943479,94219.0,94199.0,0.00212318]
[1767662990622,0.010614,94218.0,94199.0,0.00212318]
[1767662990809,0.02047572,94218.0,94199.0,0.00212318]
[1767662991010,0.0943479,94219.0,94199.0,0.00212318]
[1767662992315,0.0943479,94225.0,94199.0,0.02159501]
[1767662992520,0.11482362,94225.0,94199.0,0.12325949]
[1767662992711,0.11482362,94222.0,94199.0,0.12325949]
[1767662993124,0.010613,94221.0,94199.0,0.11264349]
[1767662993811,0.1049609,94221.0,94199.0,0.11264349]
[1767662994423,0.09117267,94220.0,94199.0,0.00212318]
[1767662995321,0.12182619,94219.0,94199.0,0.00212318]
[1767662995521,0.010614,94216.0,94199.0,0.00212318]
[1767662995718,0.11121219,94204.0,94183.0,0.010618]
[1767662995922,0.11121219,94204.0,94180.0,0.09816881]
[1767662995923,0.02003952,94210.0,94189.0,0.010617]
[1767662996124,0.10178767,94209.0,94186.0,0.01683307]
[1767662996323,0.09117267,94209.0,94187.0,0.010617]
[1767662997617,0.09028,94211.0,94184.0,0.100898]
[1767662997618,0.12182719,94206.0,94184.0,0.100898]
[1767662997814,0.010616,94201.0,94184.0,0.09028]
[1767662998724,0.010616,94202.0,94184.0,0.09028]
[1767662999330,0.010616,94199.0,94184.0,0.09028]
[1767662999922,0.010616,94199.0,94181.0,0.0166789]
[1767663000119,0.09028,94211.0,94183.0,0.09028]
[1767663000120,0.10178867,94197.0,94183.0,0.09028]
[1767663000321,0.09117267,94190.0,94166.0,0.01641305]
[1767663000525,0.11121219,94190.0,94167.0,0.10669305]
[1767663000818,0.11126713,94225.0,94184.0,0.01617703]
[1767663000819,0.010616,94201.0,94184.0,0.01617703]
[1767663001009,0.09028,94200.0,94183.0,0.09816881]
[1767663001211,0.09028,94202.0,94183.0,0.09816881]
[1767663001612,0.09028,94208.0,94187.0,0.01617703]
[1767663001810,0.09998927,94205.0,94183.0,0.09028]
[1767663002015,0.11966752,94198.0,94182.0,0.09028]
[1767663002225,0.11966752,94192.0,94171.0,0.010619]
[1767663002429,0.09998927,94190.0,94177.0,0.09028]
[1767663002633,0.09998927,94190.0,94174.0,0.100899]
[1767663002929,0.09998927,94190.0,94174.0,0.09028]
[1767663003126,0.11966752,94197.0,94178.0,0.010618]
[1767663003427,0.010611,94239.0,94174.0,0.09028]
[1767663003428,0.09998927,94211.0,94190.0,0.010617]
[1767663003725,0.09028,94210.0,94190.0,0.02737858]
[1767663003931,0.010615,94206.0,94185.0,0.0963012]
[1767663004222,0.09998927,94200.0,94180.0,0.010618]
[1767663004416,0.09998927,94194.0,94178.0,0.010618]
[1767663004615,0.01967825,94199.0,94178.0,0.010618]
[1767663005327,0.09998927,94200.0,94175.0,0.01614523]
[1767663005520,0.11966752,94208.0,94184.0,0.0159101]
[1767663005832,0.09998927,94213.0,94186.0,0.01571202]
[1767663006030,0.09998927,94212.0,94188.0,0.01571202]
[1767663006329,0.09998927,94206.0,94184.0,0.09028]
[1767663006929,0.09998927,94206.0,94186.0,0.010617]
[1767663007629,0.09998927,94206.0,94184.0,0.09028]
[1767663007829,0.010616,94202.0,94184.0,0.09028]
[1767663009133,0.010616,94202.0,94167.0,0.010619]
[1767663009134,0.11966752,94198.0,94176.0,0.010618]
[1767663009427,0.010617,94189.0,94177.0,0.09028]
[1767663009630,0.09998927,94191.0,94173.0,0.09028]
[1767663009826,0.09998927,94191.0,94173.0,0.100899]
[1767663010026,0.010616,94196.0,94175.0,0.010618]
[1767663010919,0.09998927,94197.0,94177.0,0.010618]
[1767663011928,0.010616,94196.0,94177.0,0.010618]
[1767663012126,0.010616,94196.0,94174.0,0.010619]
[1767663012527,0.010616,94194.0,94174.0,0.010619]
[1767663012724,0.11060527,94194.0,94174.0,0.010619]
[1767663013433,0.11966752,94188.0,94174.0,0.09028]
[1767663013932,0.010618,94184.0,94174.0,0.09028]
[1767663014116,0.09028,94200.0,94166.0,0.09028]
[1767663014117,0.09998927,94178.0,94166.0,0.09028]
[1767663014318,0.11060727,94184.0,94166.0,0.09028]
[1767663014721,0.09998927,94184.0,94166.0,0.09028]
[1767663014921,0.010618,94183.0,94166.0,0.09028]
[1767663015122,0.11060727,94183.0,94166.0,0.09028]
[1767663015319,0.13028552,94183.0,94166.0,0.09028]
[1767663015520,0.010618,94180.0,94166.0,0.09028]
[1767663015728,0.11060827,94175.0,94151.0,0.0107003]
[1767663015927,0.010619,94170.0,94152.0,0.09028]
[1767663016133,0.09998927,94173.0,94152.0,0.09028]
[1767663016332,0.09998927,94173.0,94152.0,0.10421964]
[1767663016531,0.09998927,94173.0,94154.0,0.010621]
[1767663016833,0.09998927,94173.0,94152.0,0.10421964]
[1767663017224,0.09998927,94173.0,94152.0,0.11484064]
[1767663017722,0.010618,94177.0,94156.0,0.01371184]
[1767663018232,0.11060727,94177.0,94155.0,0.1069222]
[1767663018427,0.010619,94174.0,94155.0,0.0963012]
[1767663018738,0.09998927,94151.0,94126.0,0.02117618]
[1767663019037,0.09998927,94160.0,94138.0,0.02117618]
[1767663019220,0.010621,94155.0,94134.0,0.0963012]
[1767663019425,0.11966752,94148.0,94123.0,0.010624]
[1767663019624,0.010622,94143.0,94124.0,0.09028]
[1767663019824,0.010623,94137.0,94124.0,0.09028]
[1767663020027,0.11061127,94144.0,94120.0,0.0963012]
[1767663020239,0.010621,94154.0,94129.0,0.11747738]
[1767663020424,0.09032,94156.0,94137.0,0.02117618]
[1767663020627,0.09032,94161.0,94138.0,0.12211918]
[1767663020935,0.01062,94160.0,94138.0,0.21842038]
[1767663021430,0.010619,94169.0,94143.0,0.02117618]
[1767663021635,0.010619,94169.0,94145.0,0.02117618]
[1767663021844,0.01062,94166.0,94145.0,0.02117618]
[1767663022237,0.01062,94163.0,94145.0,0.02117618]
[1767663022435,0.01062,94167.0,94145.0,0.02117618]
[1767663022739,0.01062,94164.0,94144.0,0.0963012]
[1767663022938,0.01062,94161.0,94144.0,0.0963012]
[1767663023138,0.01062,94161.0,94139.0,0.03179918]
[1767663023642,0.01062,94158.0,94139.0,0.02117618]
[1767663024028,0.01062,94162.0,94139.0,0.03179918]
[1767663024529,0.01062,94159.0,94139.0,0.02117618]
[1767663024931,0.11060927,94163.0,94140.0,0.010622]
[1767663025131,0.01062,94160.0,94140.0,0.010622]
[1767663025440,0.11061127,94149.0,94138.0,0.09032]
[1767663026740,0.010621,94152.0,94138.0,0.09032]
[1767663027129,0.010621,94155.0,94138.0,0.09032]
[1767663027325,0.09998927,94156.0,94138.0,0.09032]
[1767663027631,0.01062,94159.0,94143.0,0.02117618]
[1767663028336,0.01062,94159.0,94142.0,0.0963012]
[1767663028740,0.01062,94159.0,94138.0,0.09032]
[1767663028939,0.010621,94155.0,94138.0,0.09032]
[1767663029143,0.010621,94153.0,94138.0,0.09032]
[1767663029535,0.010621,94157.0,94139.0,0.02117618]
[1767663029840,0.09032,94160.0,94139.0,0.02117618]
[1767663030045,0.09032,94160.0,94148.0,0.010622]
[1767663030252,0.09032,94160.0,94142.0,0.010622]
[1767663030541,0.36136,94190.0,94142.0,0.010622]
[1767663030542,0.010619,94171.0,94153.0,0.010621]
[1767663030732,0.09032,94178.0,94156.0,0.11747738]
[1767663031035,0.09032,94184.0,94162.0,0.127964]
[1767663031237,0.09032,94184.0,94164.0,0.01062]
[1767663031439,0.09032,94184.0,94166.0,0.010619]
[1767663031641,0.100938,94184.0,94164.0,0.01914545]
[1767663031938,0.100938,94184.0,94163.0,0.09032]
[1767663031939,0.11796289,94181.0,94163.0,0.09032]
[1767663032131,0.09950674,94180.0,94163.0,0.09032]
[1767663034336,0.01845615,94179.0,94156.0,0.09032]
[1767663034536,0.09950674,94178.0,94156.0,0.09032]
[1767663034733,0.09950674,94178.0,94159.0,0.01062]
[1767663035635,0.09950674,94178.0,94156.0,0.09032]
[1767663036033,0.09950674,94176.0,94156.0,0.09032]
[1767663036234,0.11012574,94176.0,94157.0,0.010621]
[1767663036430,0.03672876,94183.0,94157.0,0.01914545]
[1767663036636,0.01827261,94183.0,94160.0,0.01914545]
[1767663036940,0.010618,94180.0,94160.0,0.02976545]
[1767663037540,0.010618,94178.0,94159.0,0.09819855]
[1767663037733,0.11788153,94183.0,94159.0,0.09819855]
[1767663037928,0.09950674,94181.0,94156.0,0.100941]
[1767663038138,0.11796289,94181.0,94156.0,0.09032]
[1767663038533,0.010618,94179.0,94158.0,0.01062]
[1767663039139,0.11796289,94181.0,94156.0,0.09032]
[1767663039726,0.010618,94180.0,94160.0,0.01062]
[1767663040342,0.11796289,94181.0,94156.0,0.09032]
[1767663040541,0.010618,94180.0,94156.0,0.09032]
[1767663041042,0.010618,94177.0,94161.0,0.01062]
[1767663041240,0.010618,94177.0,94158.0,0.01062]
[1767663041541,0.010619,94175.0,94158.0,0.01062]
[1767663042038,0.11012474,94179.0,94156.0,0.09032]
[1767663042239,0.01837479,94183.0,94159.0,0.01865072]
[1767663042542,0.01837479,94183.0,94156.0,0.09032]
[1767663042543,0.100938,94184.0,94166.0,0.010619]
[1767663042739,0.010618,94184.0,94168.0,0.010619]
[1767663042944,0.010618,94184.0,94166.0,0.01844227]
[1767663043335,0.010617,94190.0,94172.0,0.010619]
[1767663043647,0.010617,94190.0,94172.0,0.02906127]
[1767663043836,0.010617,94190.0,94172.0,0.01844227]
[1767663044034,0.010617,94190.0,94171.0,0.09819855]
[1767663044229,0.010617,94190.0,94171.0,0.10881755]
[1767663044832,0.010617,94190.0,94173.0,0.010619]
[1767663044833,0.01852736,94190.0,94173.0,0.010619]
[1767663045038,0.09032,94194.0,94175.0,0.01851512]
[1767663045435,0.010617,94193.0,94174.0,0.10881755]
[1767663045629,0.09032,94194.0,94174.0,0.10881755]
[1767663045630,0.1082464,94194.0,94176.0,0.010618]
[1767663045830,0.09032,94194.0,94176.0,0.010618]
[1767663046045,0.09032,94199.0,94184.0,0.01836391]
[1767663046341,0.09032,94199.0,94183.0,0.10881655]
[1767663046342,0.09032,94199.0,94183.0,0.09819855]
[1767663046538,0.09032,94199.0,94177.0,0.09819855]
[1767663046539,0.00015933,94194.0,94177.0,0.09819855]
[1767663046743,0.09950674,94193.0,94176.0,0.010618]
[1767663047044,0.09950674,94193.0,94172.0,0.010619]
[1767663047537,0.00015933,94194.0,94172.0,0.11635496]
[1767663048544,0.00015933,94194.0,94177.0,0.010618]
[1767663049545,0.00015933,94194.0,94181.0,0.010618]
[1767663049946,0.11812222,94194.0,94168.0,0.01728269]
[1767663050135,0.09950674,94192.0,94176.0,0.010618]
[1767663050335,0.09950674,94192.0,94178.0,0.010618]
[1767663050531,0.00015933,94194.0,94185.0,0.010617]
[1767663050744,0.09032,94200.0,94185.0,0.010617]
[1767663050937,0.010616,94199.0,94182.0,0.010618]
[1767663051138,0.09950674,94199.0,94176.0,0.10881655]
[1767663051340,0.09950674,94199.0,94178.0,0.010618]
[1767663051341,0.010616,94195.0,94178.0,0.010618]
[1767663051748,0.09950674,94199.0,94176.0,0.11561206]
[1767663051941,0.010616,94198.0,94181.0,0.010618]
[1767663052244,0.11796289,94195.0,94172.0,0.01741351]
[1767663052450,0.11796289,94194.0,94171.0,0.00015933]
[1767663053044,0.01845615,94193.0,94171.0,0.00015933]
[1767663053243,0.010617,94189.0,94172.0,0.010619]
[1767663053643,0.010617,94192.0,94172.0,0.010619]
[1767663053839,0.01845615,94193.0,94178.0,0.010618]
[1767663054046,0.010616,94196.0,94171.0,0.00015933]
[1767663054047,0.09842518,94200.0,94188.0,0.010617]
[1767663054241,0.09842518,94200.0,94184.0,0.010617]
[1767663054546,0.19038738,94200.0,94183.0,0.010618]
[1767663054751,0.11006738,94200.0,94187.0,0.010617]
[1767663054948,0.0919622,94200.0,94186.0,0.010617]
[1767663055253,0.0919622,94198.0,94178.0,0.09032]
[1767663055452,0.0919622,94198.0,94178.0,0.10706946]
[1767663055953,0.01679783,94193.0,94171.0,0.00015933]
[1767663056137,0.0919622,94191.0,94175.0,0.010618]
[1767663058346,0.0919622,94191.0,94172.0,0.100939]
[1767663058743,0.0919622,94191.0,94176.0,0.010618]
[1767663058944,0.0919622,94191.0,94173.0,0.010619]
[1767663059149,0.10876003,94190.0,94173.0,0.010619]
[1767663059444,0.10876003,94188.0,94173.0,0.010619]
[1767663059644,0.10876003,94188.0,94172.0,0.09032]
[1767663060048,0.10876003,94188.0,94172.0,0.100939]
[1767663061449,0.0919622,94188.0,94174.0,0.010619]
[1767663061649,0.0919622,94188.0,94172.0,0.09032]
[1767663061953,0.10845177,94188.0,94172.0,0.09032]
[1767663062156,0.1077236,94186.0,94172.0,0.09032]
[1767663062354,0.1077236,94185.0,94172.0,0.09032]
[1767663062556,0.1077236,94184.0,94172.0,0.09032]
[1767663062940,0.09123403,94184.0,94172.0,0.09032]
[1767663063352,0.09123403,94182.0,94172.0,0.09032]
[1767663063549,0.1077236,94181.0,94165.0,0.09032]
[1767663063750,0.09123403,94174.0,94165.0,0.09032]
[1767663063950,0.09123403,94174.0,94158.0,0.01062]
[1767663064148,0.09123403,94174.0,94153.0,0.01592797]
[1767663064149,0.01062,94160.0,94143.0,0.010622]
[1767663064452,0.09123403,94169.0,94152.0,0.010621]
[1767663064658,0.010619,94170.0,94154.0,0.010621]
[1767663065058,0.010619,94168.0,94151.0,0.010621]
[1767663065448,0.1183426,94168.0,94151.0,0.010621]
[1767663065651,0.09123403,94164.0,94148.0,0.09032]
[1767663065958,0.10185403,94164.0,94148.0,0.09032]
[1767663066159,0.09123403,94164.0,94149.0,0.010621]
[1767663066363,0.09123403,94164.0,94152.0,0.010621]
[1767663066874,0.09123403,94164.0,94148.0,0.09032]
[1767663066875,0.09123403,94164.0,94149.0,0.010621]
[1767663067357,0.1077236,94164.0,94149.0,0.010621]
[1767663067860,0.1077236,94164.0,94148.0,0.09032]
[1767663069360,0.1183436,94164.0,94148.0,0.09032]
[1767663070364,0.1077236,94153.0,94135.0,0.010623]
[1767663070662,0.1077236,94153.0,94136.0,0.09032]
[1767663070861,0.1183446,94151.0,94136.0,0.09032]
[1767663071058,0.1077236,94151.0,94136.0,0.09032]
[1767663071361,0.09123403,94151.0,94136.0,0.09032]
[1767663071967,0.09123403,94164.0,94148.0,0.010622]
[1767663072260,0.010619,94170.0,94154.0,0.12198057]
[1767663072466,0.010619,94173.0,94160.0,0.12198057]
[1767663072762,0.09032,94174.0,94160.0,0.12198057]
[1767663072763,0.010619,94171.0,94160.0,0.12198057]
[1767663073064,0.010619,94171.0,94151.0,0.010621]
[1767663073065,0.100939,94174.0,94152.0,0.01452156]
[1767663073362,0.09032,94174.0,94152.0,0.01452156]
[1767663073560,0.09032,94174.0,94157.0,0.010621]
[1767663073755,0.010619,94173.0,94154.0,0.010621]
[1767663074060,0.18155403,94174.0,94152.0,0.01452156]
[1767663074372,0.18155403,94174.0,94154.0,0.010621]
[1767663074554,0.18155403,94174.0,94156.0,0.010621]
[1767663075962,0.010619,94173.0,94156.0,0.010621]
[1767663077363,0.18155403,94174.0,94156.0,0.010621]
[1767663077858,0.010619,94171.0,94153.0,0.010621]
[1767663078459,0.1077236,94173.0,94153.0,0.010621]
[1767663080063,0.010619,94168.0,94147.0,0.10426044]
[1767663080367,0.1077236,94169.0,94152.0,0.010621]
[1767663081270,0.1183426,94169.0,94152.0,0.010621]
[1767663081471,0.01062,94167.0,94150.0,0.12198057]
[1767663081663,0.1183436,94159.0,94141.0,0.010622]
[1767663081883,0.09123403,94154.0,94142.0,0.09032]
[1767663082061,0.09123403,94151.0,94136.0,0.010623]
[1767663082261,0.1077236,94151.0,94138.0,0.010623]
[1767663082462,0.01648957,94157.0,94140.0,0.12198057]
[1767663082663,0.09123403,94164.0,94151.0,0.010621]
[1767663082966,0.01062,94163.0,94148.0,0.010622]
[1767663083572,0.1077236,94156.0,94133.0,0.11128463]
[1767663083876,0.1183446,94155.0,94139.0,0.010623]
[1767663084667,0.1077236,94155.0,94139.0,0.010623]
[1767663084869,0.09123403,94155.0,94141.0,0.010622]
[1767663085073,0.01648957,94160.0,94141.0,0.010622]
[1767663085371,0.1077236,94158.0,94143.0,0.010622]
[1767663086264,0.09123403,94158.0,94143.0,0.010622]
[1767663086871,0.01648957,94162.0,94137.0,0.10227486]
[1767663086872,0.01648957,94162.0,94140.0,0.01176869]
[1767663087072,0.09123403,94165.0,94142.0,0.1100924]
[1767663087366,0.09123403,94165.0,94156.0,0.010621]
[1767663087568,3.3e-07,94163.0,94152.0,0.01176869]
[1767663087767,3.3e-07,94163.0,94153.0,0.09032]
[1767663088075,3.3e-07,94163.0,94160.0,0.01062]
[1767663088276,0.00212385,94169.0,94160.0,0.01062]
[1767663089268,0.00212385,94169.0,94162.0,0.01062]
[1767663089674,0.00212385,94169.0,94155.0,0.00015933]
[1767663089675,0.010617,94185.0,94167.0,0.010619]
[1767663090377,0.1183406,94185.0,94167.0,0.010619]
[1767663090578,0.010618,94183.0,94164.0,0.10094]
[1767663090778,0.1183416,94183.0,94164.0,0.10094]
[1767663091079,0.010618,94181.0,94164.0,0.10094]
[1767663091280,0.12162805,94178.0,94164.0,0.09032]
[1767663092078,0.09578432,94173.0,94164.0,0.09032]
[1767663092681,0.01522573,94172.0,94155.0,0.00015933]
[1767663092879,0.24277637,94190.0,94155.0,0.00015933]
[1767663092880,0.11101005,94169.0,94156.0,0.09032]
[1767663095274,0.11101005,94169.0,94157.0,0.010621]
[1767663097284,0.11101005,94169.0,94159.0,0.01062]
[1767663097678,0.11101005,94168.0,94156.0,0.100941]
[1767663099185,0.11101005,94168.0,94155.0,0.09047933]
[1767663099584,0.11101005,94168.0,94156.0,0.010621]
[1767663100983,0.01522573,94167.0,94155.0,0.00015933]
[1767663101187,0.11101005,94161.0,94153.0,0.010621]
[1767663101391,0.11101005,94161.0,94152.0,0.09032]
[1767663101584,0.09578432,94159.0,94152.0,0.09032]
[1767663101783,0.11101005,94158.0,94137.0,0.01473099]
[1767663102082,0.09578432,94145.0,94138.0,0.0744859]
[1767663102286,0.09578432,94145.0,94136.0,0.09032]
[1767663102686,0.01522573,94150.0,94136.0,0.09032]
[1767663102886,0.09578432,94151.0,94144.0,0.010622]
[1767663103288,0.09578432,94151.0,94141.0,0.010622]
[1767663107396,0.11101005,94151.0,94141.0,0.010622]
[1767663107699,0.11101005,94151.0,94138.0,0.010623]
[1767663108798,0.11101005,94151.0,94140.0,0.010622]
[1767663109099,0.11101005,94155.0,94146.0,0.010622]
[1767663109486,0.09578432,94168.0,94146.0,0.01473099]
[1767663109690,0.09578432,94168.0,94152.0,0.010621]
[1767663109997,0.11101005,94168.0,94152.0,0.010621]
[1767663110197,0.11101005,94166.0,94152.0,0.010621]
[1767663110885,0.20133005,94171.0,94149.0,0.01473099]
[1767663111298,0.09578432,94170.0,94149.0,0.01473099]
[1767663111909,0.01522573,94159.0,94139.0,0.00212453]
[1767663112100,0.09578432,94154.0,94146.0,0.010622]
[1767663112290,0.09578432,94152.0,94145.0,0.010622]
[1767663112490,0.09578432,94158.0,94145.0,0.010622]
[1767663113697,0.11101005,94158.0,94145.0,0.010622]
[1767663114395,0.09831718,94156.0,94142.0,0.010622]
[1767663114595,0.11351322,94156.0,94142.0,0.010622]
[1767663115097,0.11351322,94152.0,94143.0,0.09032]
[1767663115397,0.09831718,94152.0,94144.0,0.010622]
[1767663119800,0.01519604,94157.0,94140.0,0.09032]
[1767663120003,0.01519604,94157.0,94150.0,0.010621]
[1767663121004,0.01629154,94172.0,94158.0,0.01062]
[1767663121404,0.01629154,94172.0,94160.0,0.01062]
[1767663121905,0.11380558,94169.0,94157.0,0.010621]
[1767663122202,0.01629154,94168.0,94157.0,0.010621]
[1767663122397,5.8e-07,94168.0,94160.0,0.01062]
[1767663123392,5.8e-07,94168.0,94156.0,0.010621]
[1767663124005,5.8e-07,94168.0,94153.0,0.010621]
[1767663124302,0.01629154,94167.0,94145.0,0.10923995]
[1767663124609,0.01629154,94167.0,94145.0,0.09281684]
[1767663124794,0.01629154,94166.0,94145.0,0.09281684]
[1767663124994,0.01629154,94166.0,94154.0,0.010621]
[1767663125396,0.01629154,94166.0,94145.0,0.18313684]
[1767663125904,0.01629154,94166.0,94152.0,0.010621]
[1767663126104,0.01629154,94166.0,94156.0,0.010621]
[1767663126303,0.01629154,94170.0,94156.0,0.010621]
[1767663126501,0.09751404,94173.0,94162.0,0.01062]
[1767663126693,0.01629154,94176.0,94162.0,0.01062]
[1767663126898,0.01629154,94175.0,94162.0,0.01062]
[1767663127102,0.01629154,94174.0,94162.0,0.01062]
[1767663127804,0.01629154,94173.0,94162.0,0.01062]
[1767663128112,0.4,94173.0,94167.0,0.010619]
[1767663128298,0.09032,94185.0,94166.0,0.09281684]
[1767663128500,0.09032,94185.0,94173.0,0.010619]
[1767663128701,0.01629154,94182.0,94172.0,0.010619]
[1767663128999,0.01629154,94187.0,94174.0,0.010619]
[1767663129207,0.01629154,94187.0,94177.0,0.010618]
[1767663129699,0.01629154,94187.0,94179.0,0.010618]
[1767663129906,0.09032,94189.0,94169.0,0.09281684]
[1767663130100,0.01629154,94195.0,94178.0,0.010618]
[1767663130407,0.01629154,94194.0,94178.0,0.010618]
[1767663130902,0.01629154,94193.0,94177.0,0.010618]
[1767663131297,0.12442158,94195.0,94176.0,0.010618]
[1767663131502,0.01629154,94194.0,94176.0,0.010618]
[1767663131703,0.01629154,94194.0,94178.0,0.010618]
[1767663132409,0.01629154,94193.0,94178.0,0.010618]
[1767663132707,0.01629154,94192.0,94178.0,0.010618]
[1767663132904,0.010616,94199.0,94173.0,0.10923995]
[1767663132905,0.01629154,94199.0,94173.0,0.10923995]
[1767663133206,0.01629154,94194.0,94172.0,0.09032]
[1767663133401,0.01629154,94193.0,94181.0,0.010618]
[1767663134007,0.01629154,94193.0,94177.0,0.010618]
[1767663134199,0.01629154,94193.0,94180.0,0.010618]
[1767663135507,0.01629154,94193.0,94177.0,0.010618]
[1767663135711,0.01629154,94192.0,94174.0,0.09032]
[1767663136102,0.01629154,94198.0,94181.0,0.010618]
[1767663136613,0.01629154,94197.0,94181.0,0.010618]
[1767663136804,0.01629154,94196.0,94181.0,0.010618]
[1767663137598,0.09751404,94192.0,94178.0,0.010618]
[1767663137804,0.01629154,94190.0,94177.0,0.010618]
[1767663138008,0.01629154,94189.0,94177.0,0.010618]
[1767663138206,0.01629154,94186.0,94174.0,0.09032]
[1767663138409,0.01629154,94184.0,94161.0,0.10923995]
[1767663138613,0.01629154,94174.0,94162.0,0.09032]
[1767663138811,0.01629154,94174.0,94155.0,0.09281684]
[1767663138812,0.01629154,94179.0,94163.0,0.09032]
[1767663139008,0.01629154,94179.0,94164.0,0.09032]
[1767663139311,0.01629154,94179.0,94165.0,0.09032]
[1767663139611,0.09751404,94181.0,94165.0,0.09032]
[1767663139801,0.11380558,94181.0,94165.0,0.10094]
[1767663140006,0.11380558,94180.0,94165.0,0.01062]
[1767663140307,0.01629154,94177.0,94165.0,0.01062]
[1767663140712,0.01629154,94177.0,94163.0,0.09032]
[1767663140713,0.01629154,94175.0,94159.0,0.01062]
[1767663140913,0.01629154,94175.0,94160.0,0.09032]
[1767663141411,0.01629154,94175.0,94161.0,0.01062]
[1767663141619,0.01629154,94174.0,94160.0,0.09032]
[1767663141928,0.01629154,94174.0,94154.0,0.010621]
[1767663142118,0.01629154,94167.0,94144.0,0.10923995]
[1767663142416,0.01629154,94166.0,94145.0,0.09032]
[1767663142721,0.01629154,94166.0,94149.0,0.010621]
[1767663143018,0.01062,94164.0,94147.0,0.010622]